bitfinex/quotes_ETHUSD_20241223
["timestamp","ask_amount","ask_price","bid_price","bid_amount"]
[1734964628539,3.795751,3334.4,3333.2,0.7924]
[1734964628699,3.795751,3334.4,3333.3,3.03006487]
[1734964628903,0.796631,3334.4,3333.2,0.7924]
[1734964629089,0.796631,3334.4,3331.8,6.03493988]
[1734964629090,2.99985,3333.5,3333.4,0.02805243]
[1734964629289,6.03298988,3334.0,3332.4,0.8071]
[1734964629491,3.03358988,3334.0,3332.4,0.8071]
[1734964629842,2.99993,3333.5,3332.4,0.8071]
[1734964630024,3.0,3333.4,3332.4,0.8071]
[1734964630236,3.00019,3333.2,3332.4,0.8071]
[1734964630391,0.599993,3333.3,3332.4,0.8071]
[1734964630597,0.599993,3333.3,3332.5,0.02829349]
[1734964630931,3.0,3333.2,3332.5,0.02829349]
[1734964631129,3.0,3333.4,3332.5,0.02829349]
[1734964631296,3.00066,3332.6,3332.5,0.02829349]
[1734964631490,3.00093,3332.3,3332.2,0.1707018]
[1734964632005,6.00084,3332.4,3332.2,0.1707018]
[1734964632207,6.600924,3332.4,3332.2,0.1707018]
[1734964632406,3.00093,3332.3,3332.2,0.1707018]
[1734964632716,6.00093,3332.3,3332.2,0.1707018]
[1734964634742,3.00048,3332.8,3332.2,0.1707018]
[1734964634897,3.00021,3333.1,3332.2,0.1707018]
[1734964635231,3.00091,3332.4,3332.2,0.1707018]
[1734964635608,3.00093,3332.3,3332.2,0.1707018]
[1734964635791,3.300351,3333.0,3332.2,0.1707018]
[1734964635993,0.300021,3333.0,3332.2,0.1707018]
[1734964636230,6.00093,3332.3,3332.2,0.1707018]
[1734964637221,3.0,3332.4,3332.2,0.1707018]
[1734964637421,6.00093,3332.3,3332.2,0.1707018]
[1734964638802,3.00071,3332.6,3332.2,0.1707018]
[1734964638997,3.0,3332.5,3332.2,0.1707018]
[1734964639251,3.81538988,3333.3,3332.2,0.1707018]
[1734964639400,3.0004,3332.9,3332.3,0.02847302]
[1734964639942,0.5053654,3333.2,3332.3,0.02847302]
[1734964640103,3.0004,3332.9,3332.3,0.02847302]
[1734964640299,3.0004,3332.9,3332.2,0.1707018]
[1734964640523,3.00075,3332.5,3332.4,0.03008295]
[1734964640723,3.00075,3332.5,3332.2,0.1707018]
[1734964640933,3.00075,3332.5,3332.4,0.03008295]
[1734964641134,3.00084,3332.4,3332.3,0.03011165]
[1734964641301,0.300075,3332.5,3332.2,0.1707018]
[1734964641501,3.41590879,3334.2,3332.5,3.00073]
[1734964641726,2.99968,3333.7,3332.3,0.7965]
[1734964641901,2.99968,3333.7,3332.7,0.7965]
[1734964642231,6.41520879,3334.2,3332.8,0.0296249]
[1734964642232,3.0,3333.4,3332.8,0.0296249]
[1734964642542,3.42382641,3333.4,3332.8,0.0296249]
[1734964642738,1.23826409,3333.6,3332.9,3.00037]
[1734964643099,1.23826409,3333.6,3333.0,0.02941856]
[1734964643299,3.0,3334.1,3333.0,0.02941856]
[1734964643501,0.796631,3334.4,3332.9,0.7531]
[1734964643502,1.0502488,3334.0,3332.9,0.7531]
[1734964643706,1.23826409,3334.5,3334.0,0.7531]
[1734964644536,1.23826409,3334.5,3334.1,0.04025473]
[1734964644740,2.99887,3334.6,3334.1,0.04025473]
[1734964645100,2.99922,3334.2,3334.1,0.04025473]
[1734964645400,2.99933,3334.1,3333.5,0.7952]
[1734964645615,2.99948,3334.0,3333.5,0.7952]
[1734964645812,2.99948,3334.0,3333.6,0.04417537]
[1734964646013,3.0,3334.1,3333.6,0.04417537]
[1734964646237,2.99902,3334.5,3333.6,0.04417537]
[1734964646440,0.7531,3334.7,3333.7,2.99959]
[1734964646738,0.7531,3334.7,3333.7,0.04413075]
[1734964647130,2.99922,3334.2,3332.3,0.8083]
[1734964647306,2.99957,3333.9,3332.3,0.8083]
[1734964647500,0.299957,3333.8,3332.7,0.8083]
[1734964647740,2.99945,3334.0,3332.8,3.00046]
[1734964648033,2.99926,3334.2,3332.8,0.04454251]
[1734964648236,0.7993,3334.4,3332.8,0.04454251]
[1734964648439,2.9995,3333.9,3332.8,0.04454251]
[1734964648640,2.99933,3334.1,3333.1,3.0002]
[1734964648803,0.37993,3334.3,3333.3,2.99994]
[1734964649005,3.37906,3334.3,3333.2,0.8154537]
[1734964649211,3.37906,3334.3,3333.4,0.04017336]
[1734964649427,3.37906,3334.3,3333.2,3.77531]
[1734964649741,0.37993,3334.3,3333.3,3.0]
[1734964649944,0.37993,3334.3,3333.3,0.04021353]
[1734964650101,0.37993,3334.3,3333.4,2.99985]
[1734964650300,2.99912,3334.4,3333.2,3.77531]
[1734964650504,0.7531,3334.7,3333.5,0.04426025]
[1734964650828,2.99967,3333.7,3333.6,0.03979407]
[1734964651029,2.99967,3333.7,3332.5,0.7952]
[1734964651030,2.99994,3333.4,3332.5,0.7952]
[1734964651217,0.299994,3333.3,3332.5,0.7952]
[1734964651420,3.00066,3332.6,3332.2,0.1707018]
[1734964651636,3.0,3333.1,3332.2,0.1707018]
[1734964651842,3.00087,3332.4,3332.2,0.1707018]
[1734964652010,3.00093,3332.3,3332.2,0.1707018]
[1734964652307,6.00093,3332.3,3332.2,0.1707018]
[1734964652845,6.75993,3332.3,3332.2,1.8e-06]
[1734964653021,3.8133,3332.2,3330.5,0.8289]
[1734964653222,3.8133,3332.2,3330.0,0.8229]
[1734964653223,3.0,3331.4,3330.0,0.8229]
[1734964653431,3.00277,3330.3,3330.0,0.8229]
[1734964653654,3.003,3330.0,3329.9,7.81e-06]
[1734964653961,6.003,3330.0,3329.9,7.81e-06]
[1734964654569,3.78057,3330.3,3328.8,5.28301825]
[1734964654570,3.00399,3328.9,3328.8,0.1707009]
[1734964655315,3.00399,3328.9,3328.4,8.33e-06]
[1734964655316,3.00426,3328.6,3328.4,8.33e-06]
[1734964655512,3.0,3328.5,3328.4,8.33e-06]
[1734964655706,6.03784988,3328.6,3328.4,8.33e-06]
[1734964655968,3.0,3329.4,3328.4,8.33e-06]
[1734964656169,3.0,3329.4,3328.1,3.86016954]
[1734964656170,1.23826409,3329.1,3328.1,0.7963]
[1734964656872,3.00376,3329.2,3328.1,0.7963]
[1734964657074,4.23826409,3329.5,3327.7,0.60356792]
[1734964657075,3.03358988,3328.9,3327.7,0.60356792]
[1734964657212,3.0,3328.3,3327.2,0.00751]
[1734964657411,3.00414,3328.8,3327.2,0.00751]
[1734964657412,3.0,3328.6,3327.2,0.00751]
[1734964657668,3.00484,3328.0,3327.3,0.04421758]
[1734964657867,3.0,3328.8,3327.3,0.04421758]
[1734964658081,3.00508,3327.7,3327.2,0.00751]
[1734964658284,3.00489,3327.9,3327.4,0.04417279]
[1734964658431,3.00495,3327.9,3327.2,0.00751]
[1734964658637,6.00471,3328.2,3327.2,0.00751]
[1734964658883,6.00471,3328.2,3327.3,0.03189932]
[1734964659036,3.00439,3328.5,3327.4,0.7611]
[1734964659237,1.7228654,3328.5,3327.4,0.7611]
[1734964659478,3.00469,3328.2,3327.4,0.7611]
[1734964659642,1.7228654,3328.5,3327.4,0.7611]
[1734964659843,3.48897131,3328.5,3327.4,0.7611]
[1734964660063,3.00481,3328.0,3327.4,0.7611]
[1734964660391,3.00505,3327.8,3327.2,0.00751]
[1734964660596,3.00463,3328.2,3327.5,0.0318577]
[1734964660729,3.00463,3328.2,3327.2,0.00751]
[1734964661031,0.48460131,3328.5,3327.2,0.00751]
[1734964661032,3.00508,3327.7,3327.3,0.03191145]
[1734964661232,0.300508,3327.6,3327.2,0.00751]
[1734964661436,3.03358988,3328.4,3327.2,0.00751]
[1734964661437,3.00495,3327.9,3327.2,0.00751]
[1734964661636,3.00469,3328.2,3327.3,0.03191145]
[1734964661864,3.00455,3328.3,3327.2,0.00751]
[1734964662194,3.00465,3328.2,3327.4,0.03079739]
[1734964662404,0.7967,3328.2,3327.3,0.03082427]
[1734964662537,0.7967,3328.2,3327.5,0.03077052]
[1734964662744,3.0051,3327.7,3327.2,0.00751]
[1734964663671,3.0051,3327.7,3327.3,0.03082427]
[1734964663875,3.0051,3327.7,3327.2,0.00751]
[1734964664080,0.7967,3328.2,3327.2,0.00751]
[1734964664370,3.00489,3328.0,3327.3,0.03082427]
[1734964664576,3.00489,3328.0,3327.2,0.00751]
[1734964664775,0.37967,3328.1,3327.2,0.00751]
[1734964664974,3.00502,3327.8,3327.3,0.03082427]
[1734964665287,0.4208005,3327.8,3327.2,0.00751]
[1734964665604,1.202985,3327.9,3327.2,0.00751]
[1734964665605,3.00522,3327.6,3327.2,0.00751]
[1734964665777,4.207965,3327.9,3327.2,0.00751]
[1734964666083,3.00517,3327.6,3327.2,0.00751]
[1734964666242,3.00543,3327.3,3327.2,0.00751]
[1734964666638,6.00553,3327.2,3327.1,0.625]
[1734964666878,6.90944199,3327.2,3327.1,0.625]
[1734964667679,6.00553,3327.2,3327.1,0.625]
[1734964668381,3.03358988,3327.4,3326.4,0.59961233]
[1734964668585,3.00555,3327.2,3326.4,0.59961233]
[1734964668882,3.0,3327.3,3326.5,0.03004068]
[1734964669082,3.00621,3326.5,3325.6,0.8221]
[1734964669256,3.00621,3326.5,3326.0,0.59967253]
[1734964669461,3.00598,3326.7,3325.7,0.03092294]
[1734964669658,3.00598,3326.7,3325.6,0.8221]
[1734964669659,3.60993699,3326.7,3326.1,0.03081535]
[1734964669982,0.60395699,3326.7,3325.6,0.8221]
[1734964670180,3.00634,3326.3,3326.2,0.03078846]
[1734964670395,3.00652,3326.1,3325.6,0.8221]
[1734964670765,3.00665,3326.0,3325.6,0.8221]
[1734964670949,6.00595,3326.8,3325.6,0.8221]
[1734964671144,3.00679,3325.8,3325.7,0.03092294]
[1734964671560,3.00697,3325.6,3325.5,0.1707009]
[1734964671861,3.0,3326.3,3325.5,0.1707009]
[1734964671862,3.00683,3325.8,3325.5,0.1707009]
[1734964672071,3.00697,3325.6,3325.5,0.1707009]
[1734964672587,0.59584899,3326.2,3325.5,0.1707009]
[1734964672944,3.0067,3326.0,3325.6,0.02935964]
[1734964673199,3.03358988,3325.9,3325.5,0.1707009]
[1734964673690,0.8231,3327.1,3325.6,0.02935964]
[1734964673848,3.00641,3326.3,3325.5,0.1707009]
[1734964674168,3.00644,3326.2,3325.7,0.02933274]
[1734964674349,3.03358988,3326.9,3325.6,0.02935964]
[1734964674549,3.03358988,3326.9,3325.9,0.8198]
[1734964675152,3.00617,3326.5,3326.0,0.02925204]
[1734964675385,3.00598,3326.7,3325.9,0.8198]
[1734964675587,3.00644,3326.2,3326.1,0.02922514]
[1734964675791,3.60393199,3326.8,3325.5,0.1707009]
[1734964675965,3.00678,3325.9,3325.5,0.1707009]
[1734964676147,3.00685,3325.8,3325.6,0.02935964]
[1734964676389,3.00634,3326.3,3325.5,0.1707009]
[1734964676614,6.00652,3326.1,3325.5,0.1707009]
[1734964676768,6.00652,3326.1,3325.6,0.0303847]
[1734964677111,3.00697,3325.6,3325.5,0.1707009]
[1734964677464,6.78957,3325.6,3325.5,0.1707009]
[1734964677664,7.468527,3325.6,3325.5,0.1707009]
[1734964677890,6.00697,3325.6,3325.5,0.1707009]
[1734964678506,3.0,3325.6,3324.6,0.8304]
[1734964678720,6.04035988,3325.9,3324.6,0.8304]
[1734964678924,3.03358988,3326.4,3324.6,0.8304]
[1734964679101,3.00682,3325.8,3324.7,3.00771]
[1734964679307,3.0,3326.3,3324.8,3.391501]
[1734964679620,3.00661,3326.0,3324.8,0.383811]
[1734964679783,3.0,3326.3,3324.9,3.0076]
[1734964679983,3.0,3326.3,3324.6,0.8304]
[1734964679984,3.0066,3326.1,3324.6,0.8304]
[1734964680184,3.0,3326.3,3324.6,0.8304]
[1734964680401,3.00663,3326.0,3324.8,3.00768]
[1734964680594,3.0,3326.3,3324.9,0.300768]
[1734964680827,3.0,3326.3,3324.6,0.8304]
[1734964681125,3.00693,3325.7,3324.6,3.83827]
[1734964681307,3.00672,3325.9,3324.9,0.60340567]
[1734964681522,3.0065,3326.2,3325.1,0.7879]
[1734964681830,3.00653,3326.1,3325.1,0.7879]
[1734964682033,0.300653,3326.0,3323.8,0.7879]
[1734964682324,0.7768,3325.6,3324.5,0.59954927]
[1734964682528,3.0,3325.8,3324.6,0.8167]
[1734964682947,3.00768,3324.9,3324.5,0.8167]
[1734964683315,3.0,3325.8,3324.5,0.8167]
[1734964683634,3.00709,3325.5,3324.5,0.8167]
[1734964683835,3.03358988,3325.9,3324.5,0.8167]
[1734964684075,3.00679,3325.8,3324.5,0.8167]
[1734964684227,3.0077,3324.8,3324.5,0.8167]
[1734964684614,3.00761,3324.9,3323.9,0.8167]
[1734964684828,3.03358988,3325.4,3324.0,0.03004071]
[1734964684829,3.0,3325.2,3324.0,0.03004071]
[1734964685022,3.00788,3324.6,3324.0,0.03004071]
[1734964685254,3.0075,3325.1,3323.9,1.42697488]
[1734964685416,3.00843,3324.0,3323.4,0.8167]
[1734964685612,3.00886,3323.6,3323.2,0.60732756]
[1734964685930,3.03358988,3324.3,3323.5,0.03017538]
[1734964686111,0.7768,3324.6,3322.9,0.60268871]
[1734964686458,3.03358988,3324.3,3322.9,0.60268871]
[1734964686763,3.0,3324.7,3322.2,0.3783879]
[1734964686764,3.00921,3323.2,3322.2,0.3783879]
[1734964686912,3.03358988,3323.8,3322.3,0.03009653]
[1734964687115,3.00841,3324.1,3322.8,3.00949]
[1734964687341,3.03358988,3324.3,3322.9,0.8107]
[1734964687554,3.00777,3324.8,3323.7,0.8107]
[1734964687555,3.03358988,3324.8,3323.7,0.8107]
[1734964687754,3.00788,3324.6,3323.8,0.60533948]
[1734964687965,0.7864,3326.1,3324.3,0.8221]
[1734964688119,0.7864,3326.1,3324.0,3.00842]
[1734964688120,3.03358988,3325.8,3324.0,3.00842]
[1734964688324,3.007,3325.6,3324.6,0.8221]
[1734964688593,0.7864,3326.1,3324.7,0.03007407]
[1734964688762,3.00661,3326.0,3324.6,0.8221]
[1734964688928,3.00661,3326.0,3324.8,0.03033174]
[1734964689287,3.00697,3325.7,3324.9,0.03030482]
[1734964689589,1.17169465,3326.5,3324.6,0.8221]
[1734964689590,0.7688,3326.5,3324.6,0.8221]
[1734964689724,3.00638,3326.3,3325.2,3.00732]
[1734964689924,3.00615,3326.6,3325.3,3.7817]
[1734964690126,0.7688,3327.1,3325.4,3.00713]
[1734964690127,3.00621,3326.5,3325.4,3.00713]
[1734964690385,3.00626,3326.4,3325.4,0.03017027]
[1734964690635,3.00623,3326.5,3325.4,0.03017027]
[1734964690986,0.7688,3327.1,3325.4,0.03017027]
[1734964691300,0.7688,3327.1,3325.3,3.78173]
[1734964691301,3.00629,3326.4,3325.3,3.78173]
[1734964691602,3.00616,3326.5,3325.5,0.03014337]
[1734964691818,3.00616,3326.5,3325.4,0.03017027]
[1734964691819,3.00645,3326.2,3325.4,0.03017027]
[1734964691964,0.7688,3327.1,3325.6,0.03057668]
[1734964691965,3.00597,3326.8,3325.6,0.03057668]
[1734964692165,0.300597,3326.7,3325.3,0.7745]
[1734964692360,3.82452,3327.6,3325.8,0.7699]
[1734964692566,1.23826409,3328.6,3326.6,0.7724]
[1734964692809,1.23826409,3328.6,3327.4,3.00534]
[1734964693015,1.23826409,3328.6,3327.3,0.7724]
[1734964693331,1.23826409,3328.6,3327.0,0.03004909]
[1734964693332,0.40256968,3328.9,3327.6,0.7724]
[1734964693628,0.16408338,3328.9,3327.6,0.7724]
[1734964693779,1.23826409,3329.1,3328.3,0.7724]
[1734964693972,1.23826409,3329.1,3329.0,3.0039]
[1734964694209,1.23826409,3329.1,3329.0,3.7896]
[1734964694388,1.23826409,3329.1,3329.0,3.81919764]
[1734964694591,3.0021,3331.0,3329.1,3.00381]
[1734964694813,0.30021,3330.9,3329.5,0.772]
[1734964694969,1.23826409,3331.3,3329.5,0.772]
[1734964695187,4.24013409,3331.3,3329.6,0.03168855]
[1734964695433,1.23826409,3331.3,3329.5,0.772]
[1734964695596,3.00229,3330.8,3329.7,0.03165758]
[1734964695787,3.00165,3331.5,3329.7,0.03165758]
[1734964696005,3.4220885,3331.4,3329.7,0.03165758]
[1734964696221,0.4203485,3331.4,3329.7,0.03165758]
[1734964696404,3.00238,3330.7,3329.5,0.772]
[1734964696599,3.00172,3331.5,3329.6,3.00336]
[1734964696800,3.00181,3331.4,3329.5,0.772]
[1734964697005,3.00162,3331.6,3330.1,0.7566]
[1734964697180,0.300162,3331.5,3330.1,0.7566]
[1734964697386,3.00178,3331.4,3330.1,0.7566]
[1734964697881,3.00138,3331.8,3330.1,0.7566]
[1734964698080,3.00197,3331.2,3330.1,0.7566]
[1734964698327,3.00171,3331.5,3330.1,0.78662183]
[1734964698471,3.00157,3331.6,3330.1,3.7595]
[1734964698913,0.4999523,3331.8,3330.1,3.7595]
[1734964699226,3.0,3331.9,3330.2,3.0028]
[1734964699522,3.00148,3331.7,3330.2,3.0028]
[1734964699733,3.00148,3331.7,3330.1,0.7566]
[1734964699734,1.201619,3332.1,3330.1,0.7566]
[1734964699874,3.00169,3331.5,3330.1,0.7566]
[1734964700078,3.0012,3332.0,3330.1,0.7566]
[1734964700079,3.00176,3331.4,3330.1,0.7566]
[1734964700323,0.300176,3331.4,3330.1,3.75949]
[1734964700493,3.00152,3331.7,3330.1,3.75949]
[1734964700695,0.7566,3332.2,3330.2,3.00282]
[1734964700876,3.00093,3332.3,3330.9,3.00217]
[1734964701071,3.00093,3332.3,3331.0,0.84741418]
[1734964701385,3.00178,3331.4,3331.0,0.8174]
[1734964701588,3.00129,3331.9,3330.5,0.8174]
[1734964701806,3.00147,3331.7,3330.5,0.8174]
[1734964702036,3.00186,3331.3,3330.5,0.8174]
[1734964702259,3.302046,3331.3,3330.5,0.8174]
[1734964702533,3.0,3332.0,3330.5,0.8174]
[1734964702734,3.0,3331.8,3330.5,0.8174]
[1734964703032,3.00157,3331.6,3330.5,0.8174]
[1734964703832,3.0013,3331.9,3330.6,3.00245]
[1734964704001,3.04045058,3332.6,3330.7,0.5973776]
[1734964704332,3.00148,3331.7,3330.7,0.5973776]
[1734964704488,3.00112,3332.1,3330.7,0.5973776]
[1734964704837,3.00112,3332.1,3329.9,3.00306]
[1734964704838,3.00202,3331.1,3329.1,0.7949]
[1734964704995,3.00322,3329.8,3329.1,0.7949]
[1734964705191,3.00345,3329.5,3329.1,0.7949]
[1734964705748,3.00329,3329.7,3329.1,0.7949]
[1734964705926,3.00296,3330.1,3329.1,0.7949]
[1734964706241,3.00319,3329.8,3329.1,0.7949]
[1734964706453,3.00285,3330.2,3329.1,0.7949]
[1734964706643,3.00283,3330.2,3329.1,0.7949]
[1734964706859,3.00264,3330.4,3329.1,0.7949]
[1734964707060,3.00264,3330.4,3329.2,3.0037]
[1734964707359,3.00215,3331.0,3329.1,0.7949]
[1734964707517,0.300215,3330.9,3329.1,0.7949]
[1734964708019,3.81248,3331.5,3328.7,0.5]
[1734964708020,0.8108,3331.5,3329.4,0.60303048]
[1734964708431,3.00242,3330.7,3329.4,0.60303048]
[1734964708817,3.00189,3331.3,3329.5,0.7982]
[1734964709014,3.00189,3331.3,3329.6,0.7982]
[1734964709217,3.00151,3331.7,3329.8,0.7759]
[1734964709218,3.00147,3331.7,3329.8,0.7759]
[1734964709458,3.00166,3331.5,3330.4,0.7759]
[1734964710320,3.00176,3331.4,3330.4,0.7759]
[1734964710966,3.00185,3331.3,3330.5,0.58721664]
[1734964711172,0.300112,3332.0,3330.5,0.58721664]
[1734964711386,3.00165,3331.5,3330.5,0.58721664]
[1734964711680,3.0,3332.1,3330.6,0.8039]
[1734964711819,3.00129,3331.9,3330.8,3.00225]
[1734964712227,0.0068607,3332.6,3330.6,0.8039]
[1734964712451,3.00098,3332.3,3330.6,0.8039]
[1734964712652,3.0,3332.1,3330.6,0.8039]
[1734964712854,3.00187,3331.3,3330.6,0.8039]
[1734964713234,3.00185,3331.3,3330.6,0.8039]
[1734964713967,3.00173,3331.5,3330.6,0.8039]
[1734964714172,3.00192,3331.2,3330.6,0.8039]
[1734964714416,3.00102,3332.2,3330.6,0.8039]
[1734964714587,3.00176,3331.4,3330.6,0.8039]
[1734964715017,3.0015,3331.7,3330.6,0.8039]
[1734964715218,3.300102,3332.1,3330.6,0.8039]
[1734964715516,3.0016,3331.6,3330.6,0.8039]
[1734964715725,3.300102,3332.1,3330.6,0.8039]
[1734964715928,0.30068607,3332.5,3330.8,0.75]
[1734964716075,3.0076007,3332.6,3331.4,3.00173]
[1734964716423,3.00092,3332.4,3331.2,0.78001139]
[1734964716730,0.0068607,3332.6,3331.7,0.75]
[1734964716867,0.0068607,3332.6,3331.8,0.78000672]
[1734964717069,0.0068607,3332.6,3332.5,3.75075]
[1734964717262,0.0068607,3332.6,3332.5,4.15582567]
[1734964717468,2.99919,3334.3,3332.6,0.6842]
[1734964717704,2.99899,3334.5,3333.2,0.6842]
[1734964717867,1.23826409,3335.1,3333.4,2.99987]
[1734964718067,1.23826409,3335.1,3333.5,0.6842]
[1734964718369,0.30956602,3335.0,3333.5,0.6842]
[1734964718996,2.99868,3334.8,3333.5,0.6842]
[1734964719198,2.99892,3334.6,3333.5,0.6842]
[1734964719470,1.200485,3335.2,3333.5,0.6842]
[1734964719701,2.99814,3335.4,3333.7,2.99958]
[1734964719900,2.99936,3334.1,3333.5,0.6842]
[1734964720108,2.99949,3333.9,3333.5,0.6842]
[1734964720267,2.99868,3334.8,3333.5,0.6842]
[1734964720464,2.9993,3334.2,3333.5,0.6842]
[1734964720670,2.99895,3334.5,3333.5,0.6842]
[1734964720908,2.99949,3333.9,3333.5,0.6842]
[1734964721109,2.99939,3334.1,3333.5,0.6842]
[1734964721278,2.99913,3334.3,3333.5,0.6842]
[1734964721481,2.99952,3333.9,3333.5,0.6842]
[1734964721679,2.99976,3333.6,3333.5,0.6842]
[1734964722209,3.299976,3333.6,3331.4,0.7862]
[1734964722369,3.00087,3332.4,3331.4,0.7862]
[1734964722562,3.00071,3332.6,3331.4,3.78791]
[1734964722793,3.0004,3332.9,3331.7,0.59087167]
[1734964723313,3.00086,3332.4,3331.7,0.59087167]
[1734964723522,3.00046,3332.9,3331.8,3.78756]
[1734964723676,3.00007,3333.3,3331.8,1.22404317]
[1734964724015,2.99994,3333.4,3331.8,0.7862]
[1734964724173,3.00108,3332.2,3331.8,0.7862]
[1734964724370,3.00038,3333.0,3331.8,0.7862]
[1734964724623,3.00129,3331.9,3331.8,0.7862]
[1734964726089,3.00129,3331.9,3330.9,0.7902]
[1734964726090,0.300129,3331.9,3330.9,0.7902]
[1734964726293,3.00093,3332.3,3330.9,0.7902]
[1734964726490,3.79508988,3332.9,3330.9,0.7902]
[1734964726491,3.00048,3332.8,3331.2,3.00188]
[1734964726814,3.00115,3332.1,3330.9,3.79237]
[1734964727026,3.00115,3332.1,3331.0,0.379237]
[1734964727329,3.7615,3332.9,3331.0,0.97180642]
[1734964727631,3.00111,3332.1,3331.0,3.62465336]
[1734964727941,3.7615,3332.9,3331.0,0.59256942]
[1734964728159,3.0021,3331.0,3330.9,0.7902]
[1734964728443,3.00156,3331.6,3330.3,0.8107]
[1734964728594,3.00246,3330.7,3330.3,0.8107]
[1734964728944,3.301806,3331.5,3330.3,0.8107]
[1734964728945,3.00174,3331.4,3330.3,0.8107]
[1734964729146,3.00256,3330.5,3330.3,0.8107]
[1734964729351,3.300156,3331.5,3330.3,0.8107]
[1734964729909,3.00239,3330.7,3330.3,0.8107]
[1734964730441,3.00193,3331.2,3330.3,0.8107]
[1734964730590,3.00174,3331.4,3330.3,0.8107]
[1734964730789,3.00194,3331.2,3330.3,1.192048]
[1734964731040,3.00138,3331.8,3330.3,0.8107]
[1734964731239,3.0,3331.9,3330.3,0.8107]
[1734964731740,3.00147,3331.7,3330.3,0.8107]
[1734964732033,3.00189,3331.3,3330.3,0.8107]
[1734964732337,3.00248,3330.6,3330.3,0.8107]
[1734964732699,3.00198,3331.2,3330.3,0.8107]
[1734964732700,3.00228,3330.8,3330.3,0.8107]
[1734964732894,3.0,3331.7,3330.4,0.03002528]
[1734964733242,0.90349999,3331.7,3330.3,0.8107]
[1734964733440,3.00249,3330.6,3330.3,0.8107]
[1734964734632,3.00233,3330.8,3330.3,0.8107]
[1734964734790,3.00238,3330.7,3330.3,0.8107]
[1734964734994,3.00182,3331.4,3330.3,0.8107]
[1734964735200,3.80658988,3332.3,3330.3,0.8107]
[1734964735437,3.80658988,3332.3,3330.4,3.0026]
[1734964735638,3.00178,3331.4,3330.3,0.8107]
[1734964735809,3.00192,3331.2,3330.3,0.8107]
[1734964736007,6.00222,3332.1,3330.4,0.38135]
[1734964736345,3.00229,3330.8,3330.3,0.8107]
[1734964736641,3.00204,3331.1,3330.3,0.8107]
[1734964736851,3.00193,3331.2,3330.3,0.8107]
[1734964737044,6.00154,3331.7,3330.3,0.8107]
[1734964737351,3.80658988,3332.3,3330.3,0.8107]
[1734964737352,3.00177,3331.4,3330.4,0.03002085]
[1734964737497,1.23826409,3332.2,3330.4,0.03002085]
[1734964737699,3.00166,3331.5,3330.5,0.7716]
[1734964738110,3.00185,3331.3,3330.5,0.7716]
[1734964738318,3.0012,3332.0,3330.5,0.7716]
[1734964738610,3.00175,3331.4,3330.5,0.7716]
[1734964738812,3.00157,3331.6,3330.5,3.77414]
[1734964739142,3.00179,3331.4,3330.5,0.7716]
[1734964739528,3.00179,3331.4,3330.5,1.38242339]
[1734964739845,4.23984409,3331.6,3330.5,4.82346673]
[1734964740142,1.85739613,3331.8,3330.6,3.00245]
[1734964740143,1.23826409,3331.8,3330.6,3.00245]
[1734964740347,1.23826409,3331.8,3330.9,0.7917]
[1734964740714,3.00195,3331.2,3330.9,0.7917]
[1734964740901,3.00203,3331.1,3330.9,0.7917]
[1734964741099,3.00235,3330.8,3330.5,0.7917]
[1734964741502,3.00246,3330.6,3330.5,0.7917]
[1734964741704,3.00212,3331.0,3329.1,2.7455]
[1734964741705,3.00237,3330.7,3329.6,0.7574]
[1734964741911,3.0,3331.3,3329.6,0.7574]
[1734964742099,3.0,3331.7,3330.1,0.8268]
[1734964742351,3.0,3331.7,3330.5,0.8268]
[1734964742352,1.23826409,3331.3,3330.5,0.8268]
[1734964742556,1.23826409,3331.3,3331.2,3.82872]
[1734964742716,1.23826409,3331.3,3331.2,0.8268]
[1734964743299,0.51543371,3331.3,3331.2,3.82872]
[1734964743599,1.25032319,3332.1,3331.6,0.8268]
[1734964744504,1.25032319,3332.1,3331.6,3.82834]
[1734964744813,1.25032319,3332.1,3331.2,0.99471311]
[1734964744814,0.8068,3332.5,3331.2,1.43864111]
[1734964745038,3.00183,3331.3,3331.2,0.8268]
[1734964745352,3.00219,3330.9,3330.8,0.7805]
[1734964745699,3.00174,3331.4,3330.8,0.7805]
[1734964745918,3.00207,3331.1,3330.8,0.7805]
[1734964746157,3.03358988,3331.8,3330.8,0.7805]
[1734964746308,3.00186,3331.3,3330.8,0.7805]
[1734964746747,1.85739613,3331.9,3330.8,0.7805]
[1734964747045,1.85739613,3332.0,3330.8,0.7805]
[1734964747228,3.0017,3331.5,3330.8,0.7805]
[1734964747600,4.85739613,3332.0,3330.8,0.7805]
[1734964747831,3.00219,3330.9,3330.8,0.7805]
[1734964748038,3.00264,3330.4,3330.3,0.7596]
[1734964748230,3.00249,3330.6,3330.3,0.7596]
[1734964748757,3.00228,3330.8,3330.3,0.7596]
[1734964749107,3.00327,3329.7,3329.6,0.7687]
[1734964749462,3.33381788,3330.8,3327.6,1.84225819]
[1734964749463,3.00372,3329.2,3329.1,0.7687]
[1734964749808,3.00351,3329.5,3328.0,0.7687]
[1734964750011,3.00347,3329.5,3328.5,0.7687]
[1734964750214,3.00308,3330.0,3328.5,3.77302]
[1734964750548,3.00306,3330.0,3328.7,0.8073]
[1734964750744,6.00288,3330.2,3328.7,0.8073]
[1734964750909,3.00333,3329.7,3328.7,0.8073]
[1734964751107,3.0,3330.2,3328.7,0.8073]
[1734964751459,3.00337,3329.6,3328.7,0.8073]
[1734964751661,3.003,3330.0,3328.7,0.8073]
[1734964751818,3.00408,3328.8,3327.7,0.8073]
[1734964752040,3.00392,3329.0,3327.7,3.81229]
[1734964752240,3.00423,3328.7,3328.1,0.8073]
[1734964752444,3.00403,3328.9,3328.1,0.8073]
[1734964752785,3.7728,3328.7,3327.6,0.8073]
[1734964752993,3.7728,3328.7,3326.6,1.84225819]